{"text_format":"1","workbook":"xlsx","n_sheets":1,"sheets":["Anmeldung"],"not_rendered":{"charts":0,"images":0,"macros":1,"external_links":0,"defined_names":1,"comments":0,"pivot_tables":0},"unopened":[],"bounds":{"document_bytes":16777216,"sheet_cells":100000,"rows_first":2000,"rows_last":500,"rows_between":2000,"halvings":0,"cell_chars":16384,"cell_head_chars":4096},"cells_cut":0,"cells_raw":0,"read":"whole","date_system":"1900"}

{"sheet":"Anmeldung","index":0,"n_rows":55,"n_cols":11,"rows_kept":55,"cut":false,"hidden":false,"merged":[[49,1,50,1],[49,2,50,5],[8,7,8,10],[9,7,9,10],[10,7,10,10],[47,2,47,8],[27,2,27,3],[38,2,38,3],[44,2,44,3],[45,2,45,3],[32,2,32,3],[54,2,57,7],[51,2,51,5],[35,2,35,3],[36,2,36,3],[49,6,49,8],[53,8,53,10],[49,9,50,9],[49,10,50,10],[46,2,46,3],[34,2,34,3],[37,2,37,3],[43,2,43,3],[39,2,39,3],[40,2,40,3],[42,2,42,3],[11,7,11,10],[21,1,21,4],[25,5,26,5],[25,10,26,10],[25,4,26,4],[25,6,25,8],[25,9,26,9],[21,5,21,6],[29,2,29,3],[41,2,41,3],[30,2,30,3],[31,2,31,3],[33,2,33,3],[28,2,28,3],[25,2,26,3],[2,6,2,8],[13,7,13,10],[12,7,12,10],[19,1,19,6],[2,2,2,3],[25,1,26,1],[19,7,19,10],[21,7,21,10],[14,4,15,10]]}
[]
[null,null,null,null,null,null,"Vergnügungssteuererklärung"]
[null,null,null,null,null,null,"Buchungszeichen:        5.0280."]
[]
[null,null,null,null,null,null,null,null,null,"2024"]
[]
[]
[null,null,null,null,null,null,"Absender:"]
[null,null,null,null,null,null,"Name:"]
[null,null,null,null,null,null,"Anschrift:"]
[null,null,null,null,null,null,"Ort:"]
[null,null,null,null,null,null,"Tel."]
[null,null,null,null,null,null,"Fax.:"]
[null,null,null,null,null,null,"mail:"]
[null,null,null,null,"Das Formular finden Sie unter \"Vergnügungssteuererklärung für Spielhallen\" auf buergerservice.graben-neudorf.de/online-dienste/rathausformulare zum Download."]
[]
[null,null,"Spielgeräte in Spielhallen"]
[null,null,null,null,null,null,false,false,false,false,{"$f":"IF(G18,1,IF(H18,2,IF(I18,3,IF(J18,4,0))))","v":0}]
[null,"Aufstellungsort"]
[]
[null,"Name der Spielhalle",null,null,null,null,null,"Inhaber/in"]
[]
[null,"Straße, Hausnummer",null,null,null,"PLZ",null,"Ort"]
[]
[null,null,"Spielgeräte mit Gewinnmöglichkeit",null," - Meldung der einzelnen Geräte -",null,null,null,null,"Steuersatz:",0.26]
[null,"Nr.","Zulassungs-Nr. des Spielgeräts",null,"Neu ab..\nTT.MM.JJ","Entfernt am..\nTT.MM.JJ","Bruttokasse",null,null,"steuer-pflichtige Summe","Steuer \nEuro"]
[null,null,null,null,null,null,{"$f":"IF($K$18=1,\"Januar\",IF($K$18=2,\"April\",IF($K$18=3,\"Juli\",IF($K$18=4,\"Oktober\",\"1. Quartals- monat\"))))","v":"1. Quartals- monat"},{"$f":"IF($K$18=1,\"Februar\",IF($K$18=2,\"Mai\",IF($K$18=3,\"August\",IF($K$18=4,\"November\",\"2. Quartals- monat\"))))","v":"2. Quartals- monat"},{"$f":"IF($K$18=1,\"März\",IF($K$18=2,\"Juni\",IF($K$18=3,\"September\",IF($K$18=4,\"Dezember\",\"3. Quartals- monat\"))))","v":"3. Quartals- monat"}]
[null,1,null,null,null,null,null,null,null,{"$f":"IF(SUM(G28:I28)=0,\"\",(IF($G28<0,0,$G28)+(IF($H28<0,0,$H28)+(IF($I28<0,0,$I28)))))","v":""},{"$f":"IF(AND(ISBLANK($G28),ISBLANK($H28),ISBLANK($I28)),\"\",(IF($G28<0,0,$G28*$K$25)+(IF($H28<0,0,$H28*$K$25)+(IF($I28<0,0,$I28*$K$25)))))","v":""}]
[null,2,null,null,null,null,null,null,null,{"$f":"IF(SUM(G29:I29)=0,\"\",(IF($G29<0,0,$G29)+(IF($H29<0,0,$H29)+(IF($I29<0,0,$I29)))))","v":""},{"$f":"IF(AND(ISBLANK($G29),ISBLANK($H29),ISBLANK($I29)),\"\",(IF($G29<0,0,$G29*$K$25)+(IF($H29<0,0,$H29*$K$25)+(IF($I29<0,0,$I29*$K$25)))))","v":""}]
[null,3,null,null,null,null,null,null,null,"",""]
[null,4,null,null,null,null,null,null,null,"",""]
[null,5,null,null,null,null,null,null,null,"",""]
[null,6,null,null,null,null,null,null,null,"",""]
[null,7,null,null,null,null,null,null,null,"",""]
[null,8,null,null,null,null,null,null,null,"",""]
[null,9,null,null,null,null,null,null,null,"",""]
[null,10,null,null,null,null,null,null,null,"",""]
[null,11,null,null,null,null,null,null,null,"",""]
[null,12,null,null,null,null,null,null,null,"",""]
[null,13,null,null,null,null,null,null,null,"",""]
[null,14,null,null,null,null,null,null,null,"",""]
[null,15,null,null,null,null,null,null,null,"",""]
[null,16,null,null,null,null,null,null,null,"",""]
[null,17,null,null,null,null,null,null,null,"",""]
[null,18,null,null,null,null,null,null,null,"",""]
[null,19,null,null,null,null,null,null,null,"",""]
[null,20,null,null,null,null,null,null,null,"",""]
[null,null,"Zwischensumme  Spielgeräte mit Gewinnmöglichkeit",null,null,null,null,null,null,{"$f":"IF(SUM(J28:J47)=0,\"\",SUM(J28:J47))","v":""},{"$f":"IF(SUM(K28:K47)=0,\"\",SUM(K28:K47))","v":""}]
[]
[null,null,"Spielgeräte ohne Gewinnmöglichkeit",null,null,null,"Anzahl",null,null,"Steuersatz je Monat und Gerät","Steuer\nEuro"]
[null,null,null,null,null,null,{"$f":"IF($K$18=1,\"Januar\",IF($K$18=2,\"April\",IF($K$18=3,\"Juli\",IF($K$18=4,\"Oktober\",\"1. Quartals- monat\"))))","v":"1. Quartals- monat"},{"$f":"IF($K$18=1,\"Februar\",IF($K$18=2,\"Mai\",IF($K$18=3,\"August\",IF($K$18=4,\"November\",\"2. Quartals- monat\"))))","v":"2. Quartals- monat"},{"$f":"IF($K$18=1,\"März\",IF($K$18=2,\"Juni\",IF($K$18=3,\"September\",IF($K$18=4,\"Dezember\",\"3. Quartals- monat\"))))","v":"3. Quartals- monat"}]
[null,null,"Zwischensumme  Spielgeräte ohne Gewinnmöglichkeit",null,null,null,null,null,null,120,{"$f":"IF((G52+H52+I52)*J52=0,\"\",G52*J52+H52*J52+I52*J52)","v":""}]
[]
[null,null,"Vergnügungssteuer im Abrechnungszeitraum gesamt in Euro ",null,null,null,null,null,{"$f":"IF(SUM(K48:K48)+SUM(K52:K52)=0,\" € \",SUM(K48:K48)+SUM(K52:K52))","v":" € "}]
[null,null,"Die Regelungen zum Meldeverfahren und zu den Anzeigepflichten nach der Vergnügugnssteuersatzung sind mir bekannt. Meine Angaben in dieser Steuererklärung habe ich wahrheitsgemäß nach bestem Wissen und Gewissen gemacht. Die Zählwerksausdrucke für jedes Spielgerät in der o.g. Nummerierung sind in Kopie beigefügt."]